[Event "44th Chess Olympiad Open 2022"]
[Site "Chennai"]
[Date "2022.08.01"]
[Round "4.76"]
[White "Samuel Merhawi Gebrehiwet"]
[Black "Germinal, Kemly"]
[Result "0-1"]
[WhiteElo "1616"]
[BlackElo "1997"]
[Annotator "NA RC"]
[PlyCount "114"]
[EventDate "2022.??.??"]
[TimeControl "60"]

1. Nf3 {[%emt 0:00:35]} Nc6 {[%emt 0:00:21]} 2. d4 {[%emt 0:00:34]} d5 {
[%emt 0:01:34]} 3. c4 {[%emt 0:00:25]} e6 {[%emt 0:00:44]} 4. a3 {[%emt 0:00:
00]} Nf6 {[%emt 0:00:53]} 5. Nc3 {[%emt 0:00:15]} Be7 {[%emt 0:00:59]} 6. Bf4 {
[%emt 0:00:27]} O-O {[%emt 0:00:57]} 7. h3 {[%emt 0:01:25]} a6 {[%emt 0:04:41]}
8. e3 {[%emt 0:00:13]} Nb8 {[%emt 0:01:10]} 9. Rc1 {[%emt 0:00:54]} Nbd7 {
[%emt 0:00:33]} 10. cxd5 {[%emt 0:03:39]} exd5 {[%emt 0:00:38]} 11. Bd3 {
[%emt 0:01:08]} c6 {[%emt 0:01:05]} 12. O-O {[%emt 0:00:18]} Re8 {[%emt 0:00:
00]} 13. Re1 {[%emt 0:02:14]} Nf8 {[%emt 0:00:22]} 14. Ne5 {[%emt 0:00:39]} Ng6
{[%emt 0:00:42]} 15. Bh2 {[%emt 0:01:35]} Bd6 {[%emt 0:02:12]} 16. f4 {[%emt 0:
00:00]} Nh4 {[%emt 0:13:45]} 17. Qc2 {[%emt 0:08:00]} g6 {[%emt 0:00:28]} 18.
Qf2 {[%emt 0:01:08]} Nf5 {[%emt 0:03:16]} 19. g4 {[%emt 0:00:12]} Ng7 {[%emt 0:
00:00]} 20. Bg3 {[%emt 0:01:04]} h5 {[%emt 0:03:36]} 21. Bh4 {[%emt 0:00:37]}
Be7 {[%emt 0:01:39]} 22. f5 {[%emt 0:00:19]} Nxg4 {[%emt 0:02:37]} 23. Bxe7 {
[%emt 0:02:52]} Nxf2 {[%emt 0:00:09]} 24. Bxd8 {[%emt 0:00:09]} Nxd3 {[%emt 0:
00:00]} 25. Nxd3 {[%emt 0:01:33]} Rxd8 {[%emt 0:00:27]} 26. fxg6 {[%emt 0:00:
00]} fxg6 {[%emt 0:00:16]} 27. Kh2 {[%emt 0:00:34]} Rf8 {[%emt 0:03:30]} 28. e4
{[%emt 0:01:57]} Rf3 {[%emt 0:01:27]} 29. Rcd1 {[%emt 0:02:21]} Rxh3+ {[%emt 0:
00:00]} 30. Kg2 {[%emt 0:00:06]} dxe4 {[%emt 0:00:42]} 31. Nxe4 {[%emt 0:00:11]
} Rh4 {[%emt 0:01:23]} 32. Nf6+ {[%emt 0:00:37]} Kf7 {[%emt 0:01:12]} 33. Nh7 {
[%emt 0:00:35]} Nf5 {[%emt 0:03:35]} 34. Ne5+ {[%emt 0:02:18]} Kg7 {[%emt 0:00:
00]} 35. Ng5 {[%emt 0:00:10]} Rxd4 {[%emt 0:04:23]} 36. Rxd4 {[%emt 0:04:10]}
Nxd4 {[%emt 0:00:16]} 37. Nc4 {[%emt 0:00:12]} b5 {[%emt 0:04:32]} 38. Nd6 {
[%emt 0:02:33]} Bf5 {[%emt 0:11:11]} 39. Ne8+ {[%emt 0:00:43]} Kf8 {[%emt 0:00:
00]} 40. Nh7+ {[%emt 0:00:08]} Kg8 {[%emt 0:01:01]} 41. Nef6+ {[%emt 0:30:43]}
Kf7 {[%emt 0:31:28]} 42. Rd1 {[%emt 0:05:36]} Rd8 {[%emt 0:01:09]} 43. b4 {
[%emt 0:03:35]} g5 {[%emt 0:03:05]} 44. Kh1 {[%emt 0:02:09]} Bxh7 {[%emt 0:00:
00]} 45. Nxh7 {[%emt 0:00:11]} Kg6 {[%emt 0:00:13]} 46. Nf8+ {[%emt 0:00:44]}
Rxf8 {[%emt 0:00:22]} 47. Rxd4 {[%emt 0:00:10]} Rf3 {[%emt 0:00:13]} 48. a4 {
[%emt 0:01:30]} Rc3 {[%emt 0:03:05]} 49. axb5 {[%emt 0:00:33]} axb5 {[%emt 0:
00:00]} 50. Kh2 {[%emt 0:00:55]} Kf5 {[%emt 0:00:10]} 51. Rd6 {[%emt 0:00:18]}
h4 {[%emt 0:00:23]} 52. Rh6 {[%emt 0:00:16]} Kg4 {[%emt 0:00:09]} 53. Rd6 {
[%emt 0:01:14]} Rc2+ {[%emt 0:00:29]} 54. Kh1 {[%emt 0:00:11]} h3 {[%emt 0:00:
00]} 55. Rd1 {[%emt 0:00:23]} Kh4 {[%emt 0:00:24]} 56. Rd4+ {[%emt 0:00:33]} g4
{[%emt 0:00:07]} 57. Rd6 {[%emt 0:02:26]} Rc1+ {[%emt 0:00:30]} 0-1

[Event "44th Chess Olympiad Open 2022"]
[Site "Chennai"]
[Date "2022.08.01"]
[Round "4.77"]
[White "Matoewi, Roger"]
[Black "Ismael, Mohamed Goumaneh"]
[Result "1-0"]
[WhiteElo "2015"]
[BlackElo "1473"]
[Annotator "NA RC"]
[PlyCount "75"]
[EventDate "2022.??.??"]
[TimeControl "60"]

1. e4 {[%emt 0:00:02]} e5 {[%emt 0:06:59]} 2. Nf3 {[%emt 0:00:29]} Nc6 {
[%emt 0:01:53]} 3. Bc4 {[%emt 0:00:28]} d6 {[%emt 0:02:02]} 4. h3 {[%emt 0:00:
00]} h6 {[%emt 0:00:42]} 5. c3 {[%emt 0:00:56]} Nf6 {[%emt 0:00:29]} 6. d3 {
[%emt 0:00:15]} Be7 {[%emt 0:00:24]} 7. O-O {[%emt 0:00:15]} O-O {[%emt 0:00:
00]} 8. Re1 {[%emt 0:00:31]} Bd7 {[%emt 0:01:20]} 9. d4 {[%emt 0:01:55]} exd4 {
[%emt 0:00:35]} 10. cxd4 {[%emt 0:00:13]} Na5 {[%emt 0:03:10]} 11. Bf1 {
[%emt 0:01:07]} d5 {[%emt 0:00:45]} 12. exd5 {[%emt 0:03:23]} Nxd5 {[%emt 0:00:
00]} 13. Bd2 {[%emt 0:00:14]} c6 {[%emt 0:03:21]} 14. Ne5 {[%emt 0:04:38]} Bf5
{[%emt 0:02:46]} 15. a3 {[%emt 0:00:44]} c5 {[%emt 0:01:56]} 16. dxc5 {[%emt 0:
00:00]} Nc6 {[%emt 0:00:01]} 17. Nxc6 {[%emt 0:15:26]} bxc6 {[%emt 0:00:02]}
18. Qf3 {[%emt 0:01:01]} Qd7 {[%emt 0:04:47]} 19. Qg3 {[%emt 0:13:16]} Bg6 {
[%emt 0:02:01]} 20. Nc3 {[%emt 0:02:59]} Bxc5 {[%emt 0:00:20]} 21. Nxd5 {
[%emt 0:01:48]} cxd5 {[%emt 0:01:07]} 22. Bf4 {[%emt 0:01:09]} Rfe8 {[%emt 0:
00:00]} 23. b4 {[%emt 0:00:23]} Bd4 {[%emt 0:00:50]} 24. Rxe8+ {[%emt 0:00:22]}
Rxe8 {[%emt 0:00:02]} 25. Rd1 {[%emt 0:00:14]} Bb6 {[%emt 0:01:47]} 26. Qb3 {
[%emt 0:00:55]} Qf5 {[%emt 0:03:34]} 27. Bg3 {[%emt 0:01:11]} d4 {[%emt 0:00:
00]} 28. Bd3 {[%emt 0:02:07]} Qf6 {[%emt 0:00:25]} 29. a4 {[%emt 0:00:32]} Bh5
{[%emt 0:00:48]} 30. Rc1 {[%emt 0:01:18]} a5 {[%emt 0:01:13]} 31. bxa5 {
[%emt 0:01:19]} Bxa5 {[%emt 0:00:11]} 32. Rc5 {[%emt 0:00:20]} Re1+ {[%emt 0:
00:00]} 33. Kh2 {[%emt 0:00:24]} Bd1 {[%emt 0:00:20]} 34. Rxa5 {[%emt 0:00:19]}
g6 {[%emt 0:03:24]} 35. Qb8+ {[%emt 0:00:14]} Kh7 {[%emt 0:00:07]} 36. Be5 {
[%emt 0:02:11]} Rxe5 {[%emt 0:00:11]} 37. Qxe5 {[%emt 0:00:10]} Qxf2 {[%emt 0:
00:00]} 38. Ra8 {[%emt 0:00:47]} 1-0

[Event "44th Chess Olympiad Open 2022"]
[Site "Chennai"]
[Date "2022.08.01"]
[Round "4.77"]
[White "Giasi, Viresh"]
[Black "Mohamed Ali Dima"]
[Result "1-0"]
[WhiteElo "2006"]
[BlackElo "1582"]
[Annotator "NA RC"]
[PlyCount "95"]
[EventDate "2022.??.??"]
[TimeControl "60"]

1. e4 {[%emt 0:01:07]} d6 {[%emt 0:00:48]} 2. d4 {[%emt 0:00:22]} Nf6 {[%emt 0:
00:00]} 3. Nc3 {[%emt 0:01:10]} g6 {[%emt 0:00:20]} 4. f4 {[%emt 0:00:47]} Bg7
{[%emt 0:00:58]} 5. Nf3 {[%emt 0:01:40]} Bg4 {[%emt 0:05:56]} 6. Be2 {[%emt 0:
00:00]} O-O {[%emt 0:01:02]} 7. Be3 {[%emt 0:01:58]} c6 {[%emt 0:01:30]} 8. Qd2
{[%emt 0:06:04]} b5 {[%emt 0:03:45]} 9. a3 {[%emt 0:01:07]} a5 {[%emt 0:00:33]}
10. e5 {[%emt 0:00:10]} b4 {[%emt 0:05:14]} 11. axb4 {[%emt 0:02:10]} axb4 {
[%emt 0:00:14]} 12. Rxa8 {[%emt 0:00:10]} bxc3 {[%emt 0:00:04]} 13. Qxc3 {
[%emt 0:00:29]} Nd5 {[%emt 0:00:04]} 14. Qd2 {[%emt 0:06:06]} Nxe3 {[%emt 0:00:
00]} 15. Qxe3 {[%emt 0:00:08]} Qb6 {[%emt 0:00:29]} 16. b3 {[%emt 0:02:44]} Qb7
{[%emt 0:00:10]} 17. Ra4 {[%emt 0:00:39]} Nd7 {[%emt 0:00:50]} 18. h3 {[%emt 0:
00:00]} Be6 {[%emt 0:00:22]} 19. O-O {[%emt 0:00:41]} Nb6 {[%emt 0:01:31]} 20.
Ra3 {[%emt 0:03:02]} Nd5 {[%emt 0:00:53]} 21. Qd2 {[%emt 0:00:14]} Bh6 {
[%emt 0:02:30]} 22. Ng5 {[%emt 0:01:09]} Bf5 {[%emt 0:03:14]} 23. g4 {[%emt 0:
00:00]} Bd7 {[%emt 0:00:17]} 24. c4 {[%emt 0:00:16]} Nb4 {[%emt 0:01:26]} 25.
exd6 {[%emt 0:00:44]} exd6 {[%emt 0:00:09]} 26. Ne4 {[%emt 0:00:16]} f5 {
[%emt 0:03:53]} 27. Nxd6 {[%emt 0:03:48]} Qb8 {[%emt 0:00:18]} 28. g5 {[%emt 0:
00:00]} Bxg5 {[%emt 0:00:42]} 29. fxg5 {[%emt 0:01:29]} Qxd6 {[%emt 0:00:03]}
30. Qf4 {[%emt 0:00:52]} Qe7 {[%emt 0:00:50]} 31. Ra7 {[%emt 0:02:54]} Qxe2 {
[%emt 0:02:52]} 32. Rxd7 {[%emt 0:00:04]} Nd3 {[%emt 0:00:34]} 33. Qf3 {
[%emt 0:06:37]} Qe6 {[%emt 0:07:57]} 34. Rb7 {[%emt 0:03:08]} Ne1 {[%emt 0:00:
00]} 35. Qg3 {[%emt 0:01:09]} Re8 {[%emt 0:01:49]} 36. Rb8 {[%emt 0:04:48]} Nc2
{[%emt 0:01:10]} 37. Rxe8+ {[%emt 0:00:13]} Qxe8 {[%emt 0:00:04]} 38. Qe5 {
[%emt 0:00:24]} Qd8 {[%emt 0:01:51]} 39. Qe6+ {[%emt 0:01:21]} Kf8 {[%emt 0:00:
00]} 40. Qf6+ {[%emt 0:00:50]} Qxf6 {[%emt 0:00:05]} 41. gxf6 {[%emt 0:30:03]}
Nxd4 {[%emt 0:30:02]} 42. b4 {[%emt 0:00:44]} Kf7 {[%emt 0:00:16]} 43. Rd1 {
[%emt 0:01:56]} Nf3+ {[%emt 0:02:55]} 44. Kf2 {[%emt 0:05:00]} Ne5 {[%emt 0:00:
00]} 45. b5 {[%emt 0:01:28]} cxb5 {[%emt 0:02:44]} 46. cxb5 {[%emt 0:00:05]}
Kxf6 {[%emt 0:00:40]} 47. b6 {[%emt 0:00:03]} Ke7 {[%emt 0:00:25]} 48. Re1 {
[%emt 0:00:13]} 1-0

[Event "44th Chess Olympiad Open 2022"]
[Site "Chennai"]
[Date "2022.08.01"]
[Round "4.79"]
[White "Prudente, Elmer"]
[Black "Esungi, Guy Botetsi"]
[Result "1-0"]
[WhiteElo "1995"]
[BlackElo "1481"]
[Annotator "NA RC"]
[PlyCount "43"]
[EventDate "2022.??.??"]
[TimeControl "60"]

1. e4 {[%emt 0:00:06]} e5 {[%emt 0:00:24]} 2. Nf3 {[%emt 0:00:09]} d6 {[%emt 0:
00:00]} 3. d4 {[%emt 0:00:19]} exd4 {[%emt 0:01:47]} 4. Nxd4 {[%emt 0:00:09]}
Bd7 {[%emt 0:00:41]} 5. Bc4 {[%emt 0:00:12]} Nf6 {[%emt 0:01:09]} 6. Nc3 {
[%emt 0:00:11]} Be7 {[%emt 0:01:39]} 7. O-O {[%emt 0:00:19]} O-O {[%emt 0:00:
00]} 8. h3 {[%emt 0:00:32]} Nc6 {[%emt 0:01:19]} 9. Be3 {[%emt 0:00:17]} Nxd4 {
[%emt 0:02:05]} 10. Bxd4 {[%emt 0:00:11]} Qc8 {[%emt 0:02:46]} 11. f4 {[%emt 0:
00:00]} Bxh3 {[%emt 0:07:43]} 12. gxh3 {[%emt 0:00:10]} Qxh3 {[%emt 0:00:21]}
13. Qf3 {[%emt 0:00:05]} Qxf3 {[%emt 0:08:22]} 14. Rxf3 {[%emt 0:00:10]} Nh5 {
[%emt 0:01:30]} 15. Nd5 {[%emt 0:00:15]} Bd8 {[%emt 0:01:21]} 16. Rh3 {[%emt 0:
00:00]} g6 {[%emt 0:03:16]} 17. Rxh5 {[%emt 0:01:43]} gxh5 {[%emt 0:10:56]} 18.
Nf6+ {[%emt 0:00:09]} Bxf6 {[%emt 0:00:25]} 19. Bxf6 {[%emt 0:00:09]} Rae8 {
[%emt 0:02:07]} 20. Kf2 {[%emt 0:00:08]} h6 {[%emt 0:02:23]} 21. e5 {[%emt 0:
00:00]} Kh7 {[%emt 0:05:00]} 22. Bd3+ {[%emt 0:00:08]} 1-0

[Event "44th Chess Olympiad Open 2022"]
[Site "Chennai"]
[Date "2022.08.01"]
[Round "4.79"]
[White "Mimbasa Kutesa, Willy"]
[Black "Mafnas, Peter"]
[Result "0-1"]
[WhiteElo "1755"]
[BlackElo "2039"]
[Annotator "NA RC"]
[PlyCount "80"]
[EventDate "2022.??.??"]
[TimeControl "60"]

1. e4 {[%emt 0:00:19]} c6 {[%emt 0:00:09]} 2. d4 {[%emt 0:00:33]} d5 {[%emt 0:
00:00]} 3. e5 {[%emt 0:00:29]} Bf5 {[%emt 0:00:09]} 4. Be3 {[%emt 0:02:08]} e6
{[%emt 0:00:09]} 5. Nf3 {[%emt 0:01:07]} Nd7 {[%emt 0:00:31]} 6. Nbd2 {[%emt 0:
00:00]} c5 {[%emt 0:02:29]} 7. c3 {[%emt 0:00:45]} Qb6 {[%emt 0:02:58]} 8. Nh4
{[%emt 0:01:07]} Bg6 {[%emt 0:00:44]} 9. Nxg6 {[%emt 0:00:33]} hxg6 {[%emt 0:
00:00]} 10. Bd3 {[%emt 0:00:36]} Nh6 {[%emt 0:01:43]} 11. O-O {[%emt 0:02:15]}
c4 {[%emt 0:00:56]} 12. Bc2 {[%emt 0:00:23]} Be7 {[%emt 0:00:44]} 13. Nf3 {
[%emt 0:00:46]} Nf5 {[%emt 0:01:10]} 14. Bg5 {[%emt 0:01:20]} Qd8 {[%emt 0:00:
00]} 15. Qd2 {[%emt 0:02:05]} Nh4 {[%emt 0:01:04]} 16. Bxh4 {[%emt 0:02:48]}
Bxh4 {[%emt 0:00:14]} 17. Ba4 {[%emt 0:00:21]} a6 {[%emt 0:02:00]} 18. Bxd7+ {
[%emt 0:01:51]} Qxd7 {[%emt 0:00:06]} 19. Nxh4 {[%emt 0:00:34]} Rxh4 {[%emt 0:
00:00]} 20. b3 {[%emt 0:06:27]} cxb3 {[%emt 0:05:15]} 21. axb3 {[%emt 0:00:00]}
Qb5 {[%emt 0:00:22]} 22. g3 {[%emt 0:00:00]} Re4 {[%emt 0:00:10]} 23. Rfe1 {
[%emt 0:00:51]} Rxe1+ {[%emt 0:02:37]} 24. Rxe1 {[%emt 0:00:22]} Qxb3 {[%emt 0:
00:00]} 25. h4 {[%emt 0:01:37]} a5 {[%emt 0:00:27]} 26. h5 {[%emt 0:00:07]}
gxh5 {[%emt 0:00:20]} 27. Qd3 {[%emt 0:00:30]} g6 {[%emt 0:00:19]} 28. Rb1 {
[%emt 0:00:36]} Qc4 {[%emt 0:00:14]} 29. Qxc4 {[%emt 0:00:59]} dxc4 {[%emt 0:
00:00]} 30. Rxb7 {[%emt 0:00:20]} a4 {[%emt 0:00:04]} 31. Rb2 {[%emt 0:00:17]}
a3 {[%emt 0:00:07]} 32. Ra2 {[%emt 0:00:15]} Kd7 {[%emt 0:00:05]} 33. Kf1 {
[%emt 0:00:15]} Kc6 {[%emt 0:00:22]} 34. Ke1 {[%emt 0:01:07]} Kb5 {[%emt 0:00:
00]} 35. Kd2 {[%emt 0:00:19]} Ka4 {[%emt 0:00:07]} 36. Kc2 {[%emt 0:00:16]} Rb8
{[%emt 0:00:22]} 37. f4 {[%emt 0:01:45]} Rb3 {[%emt 0:01:20]} 38. Ra1 {[%emt 0:
00:00]} Rb2+ {[%emt 0:00:10]} 39. Kd1 {[%emt 0:00:39]} Rg2 {[%emt 0:00:12]} 40.
Rb1 {[%emt 0:00:48]} a2 {[%emt 0:00:45]} 0-1

[Event "44th Chess Olympiad Open 2022"]
[Site "Chennai"]
[Date "2022.08.01"]
[Round "4.79"]
[White "Masiala Mayuku, Eddy"]
[Black "Soriano, Rudolph P."]
[Result "1-0"]
[WhiteElo "1574"]
[BlackElo "1824"]
[Annotator "NA RC"]
[PlyCount "73"]
[EventDate "2022.??.??"]
[TimeControl "60"]

1. d4 {[%emt 0:00:21]} Nf6 {[%emt 0:00:00]} 2. Nf3 {[%emt 0:01:25]} e6 {
[%emt 0:00:02]} 3. g3 {[%emt 0:00:52]} d5 {[%emt 0:01:19]} 4. Bg2 {[%emt 0:00:
00]} Be7 {[%emt 0:00:33]} 5. O-O {[%emt 0:00:41]} O-O {[%emt 0:00:19]} 6. Re1 {
[%emt 0:01:07]} Nbd7 {[%emt 0:01:33]} 7. Qd3 {[%emt 0:00:57]} c5 {[%emt 0:00:
00]} 8. c3 {[%emt 0:01:06]} c4 {[%emt 0:00:54]} 9. Qc2 {[%emt 0:00:22]} Ne4 {
[%emt 0:03:12]} 10. Nbd2 {[%emt 0:00:59]} f5 {[%emt 0:00:30]} 11. Nf1 {[%emt 0:
00:00]} g5 {[%emt 0:03:48]} 12. N3d2 {[%emt 0:01:26]} Qe8 {[%emt 0:01:32]} 13.
f3 {[%emt 0:00:46]} Nd6 {[%emt 0:01:08]} 14. e4 {[%emt 0:00:42]} fxe4 {[%emt 0:
00:00]} 15. fxe4 {[%emt 0:00:59]} Qg6 {[%emt 0:00:34]} 16. Qd1 {[%emt 0:01:41]}
Qf7 {[%emt 0:05:21]} 17. Nf3 {[%emt 0:05:31]} Nxe4 {[%emt 0:00:59]} 18. N1d2 {
[%emt 0:01:39]} Nxd2 {[%emt 0:12:33]} 19. Qxd2 {[%emt 0:02:08]} Kh8 {[%emt 0:
00:00]} 20. Rf1 {[%emt 0:00:54]} Qg6 {[%emt 0:04:54]} 21. Qe2 {[%emt 0:01:23]}
h6 {[%emt 0:02:37]} 22. Bd2 {[%emt 0:01:31]} Bd6 {[%emt 0:00:58]} 23. Rae1 {
[%emt 0:00:37]} Nf6 {[%emt 0:01:35]} 24. Ne5 {[%emt 0:00:57]} Qg7 {[%emt 0:00:
00]} 25. Rf2 {[%emt 0:01:18]} Bxe5 {[%emt 0:01:57]} 26. dxe5 {[%emt 0:01:18]}
Nh7 {[%emt 0:00:35]} 27. Rxf8+ {[%emt 0:01:25]} Nxf8 {[%emt 0:00:17]} 28. Be3 {
[%emt 0:00:16]} Bd7 {[%emt 0:01:56]} 29. Rf1 {[%emt 0:01:31]} Nh7 {[%emt 0:00:
00]} 30. Qg4 {[%emt 0:01:29]} b6 {[%emt 0:01:07]} 31. Bd4 {[%emt 0:00:43]} Kg8
{[%emt 0:08:03]} 32. Bxd5 {[%emt 0:06:15]} exd5 {[%emt 0:00:00]} 33. e6 {
[%emt 0:02:01]} h5 {[%emt 0:03:26]} 34. Qf5 {[%emt 0:02:22]} Rf8 {[%emt 0:00:
00]} 35. Bxg7 {[%emt 0:01:12]} Rxf5 {[%emt 0:00:11]} 36. Rxf5 {[%emt 0:00:06]}
Bxe6 {[%emt 0:00:03]} 37. Re5 {[%emt 0:00:09]} 1-0

[Event "44th Chess Olympiad Open 2022"]
[Site "Chennai"]
[Date "2022.08.01"]
[Round "4.80"]
[White "Hashem, Khaled"]
[Black "Mbongeni, Mabuza"]
[Result "1-0"]
[WhiteElo "1870"]
[BlackElo "1669"]
[Annotator "NA RC"]
[PlyCount "97"]
[EventDate "2022.??.??"]
[TimeControl "60"]

1. d4 {[%emt 0:00:03]} Nf6 {[%emt 0:00:17]} 2. Nf3 {[%emt 0:00:06]} d5 {
[%emt 0:00:11]} 3. Bg5 {[%emt 0:00:33]} e6 {[%emt 0:00:40]} 4. e3 {[%emt 0:00:
00]} Be7 {[%emt 0:00:20]} 5. Bd3 {[%emt 0:00:21]} O-O {[%emt 0:00:30]} 6. Nbd2
{[%emt 0:00:38]} Nbd7 {[%emt 0:00:29]} 7. O-O {[%emt 0:00:35]} h6 {[%emt 0:00:
00]} 8. Bh4 {[%emt 0:00:26]} b6 {[%emt 0:01:38]} 9. c3 {[%emt 0:03:47]} Bb7 {
[%emt 0:00:14]} 10. Qb1 {[%emt 0:10:46]} c5 {[%emt 0:01:11]} 11. b4 {[%emt 0:
00:00]} c4 {[%emt 0:06:50]} 12. Bc2 {[%emt 0:00:25]} b5 {[%emt 0:00:08]} 13. a4
{[%emt 0:00:10]} a6 {[%emt 0:00:06]} 14. a5 {[%emt 0:01:52]} Re8 {[%emt 0:00:
00]} 15. Re1 {[%emt 0:03:28]} Qc7 {[%emt 0:00:19]} 16. e4 {[%emt 0:00:57]} dxe4
{[%emt 0:00:24]} 17. Nxe4 {[%emt 0:00:29]} Nxe4 {[%emt 0:00:32]} 18. Bxe4 {
[%emt 0:00:24]} Bxh4 {[%emt 0:01:06]} 19. Nxh4 {[%emt 0:00:48]} Nf6 {[%emt 0:
00:00]} 20. Bxb7 {[%emt 0:07:02]} Qxb7 {[%emt 0:00:06]} 21. f4 {[%emt 0:11:26]}
Nd5 {[%emt 0:03:17]} 22. Qc1 {[%emt 0:00:36]} Qe7 {[%emt 0:00:39]} 23. g3 {
[%emt 0:06:54]} Qf6 {[%emt 0:01:12]} 24. Re5 {[%emt 0:02:16]} Rad8 {[%emt 0:00:
00]} 25. Qd2 {[%emt 0:02:06]} Kh8 {[%emt 0:04:31]} 26. Rf1 {[%emt 0:00:26]} g6
{[%emt 0:02:02]} 27. Ng2 {[%emt 0:05:54]} Rg8 {[%emt 0:04:48]} 28. Rf2 {
[%emt 0:05:10]} Rd6 {[%emt 0:07:13]} 29. g4 {[%emt 0:03:18]} Qg7 {[%emt 0:00:
00]} 30. Re1 {[%emt 0:14:27]} f5 {[%emt 0:01:36]} 31. g5 {[%emt 0:04:46]} hxg5
{[%emt 0:05:12]} 32. fxg5 {[%emt 0:00:02]} Re8 {[%emt 0:02:35]} 33. Re5 {
[%emt 0:04:33]} Kg8 {[%emt 0:00:36]} 34. Rfe2 {[%emt 0:01:52]} Kf7 {[%emt 0:00:
00]} 35. Nf4 {[%emt 0:02:16]} Nc7 {[%emt 0:04:50]} 36. Qe1 {[%emt 0:01:15]} Qf8
{[%emt 0:08:20]} 37. R2e3 {[%emt 0:00:09]} Qe7 {[%emt 0:00:22]} 38. Qg3 {
[%emt 0:01:25]} Rh8 {[%emt 0:00:39]} 39. h4 {[%emt 0:00:41]} Qd7 {[%emt 0:00:
00]} 40. Qe1 {[%emt 0:04:13]} Qc6 {[%emt 0:05:52]} 41. h5 {[%emt 0:05:44]} Rxh5
{[%emt 0:17:11]} 42. Nxh5 {[%emt 0:00:40]} gxh5 {[%emt 0:00:05]} 43. g6+ {
[%emt 0:00:45]} Kg7 {[%emt 0:09:41]} 44. Qh4 {[%emt 0:00:54]} Qe8 {[%emt 0:00:
00]} 45. Rxf5 {[%emt 0:01:02]} Rd5 {[%emt 0:03:25]} 46. Rf7+ {[%emt 0:03:20]}
Kh6 {[%emt 0:05:37]} 47. Re5 {[%emt 0:01:34]} Rxe5 {[%emt 0:01:21]} 48. dxe5 {
[%emt 0:00:26]} Nd5 {[%emt 0:00:31]} 49. Rh7+ {[%emt 0:00:27]} 1-0

[Event "44th Chess Olympiad Open 2022"]
[Site "Chennai"]
[Date "2022.08.01"]
[Round "4.80"]
[White "Alhejab, Meshal"]
[Black "Sihlongonyane, Sikhanyiso"]
[Result "1-0"]
[WhiteElo "1732"]
[BlackElo "1658"]
[Annotator "NA RC"]
[PlyCount "65"]
[EventDate "2022.??.??"]
[TimeControl "60"]

1. e4 {[%emt 0:00:53]} c5 {[%emt 0:00:05]} 2. Nf3 {[%emt 0:00:03]} d6 {[%emt 0:
00:00]} 3. d4 {[%emt 0:00:10]} cxd4 {[%emt 0:00:02]} 4. Nxd4 {[%emt 0:00:04]}
Nf6 {[%emt 0:00:11]} 5. Nc3 {[%emt 0:00:04]} a6 {[%emt 0:00:03]} 6. Be2 {
[%emt 0:00:47]} e5 {[%emt 0:00:04]} 7. Nb3 {[%emt 0:00:03]} Be7 {[%emt 0:00:08]
} 8. Be3 {[%emt 0:01:11]} Be6 {[%emt 0:00:03]} 9. Qd3 {[%emt 0:01:06]} Nbd7 {
[%emt 0:00:03]} 10. Nd5 {[%emt 0:00:50]} Bxd5 {[%emt 0:00:03]} 11. exd5 {
[%emt 0:00:08]} b5 {[%emt 0:00:08]} 12. a4 {[%emt 0:01:13]} Rb8 {[%emt 0:07:33]
} 13. axb5 {[%emt 0:02:24]} axb5 {[%emt 0:00:02]} 14. Na5 {[%emt 0:10:13]} Ra8
{[%emt 0:09:29]} 15. Qxb5 {[%emt 0:06:12]} O-O {[%emt 0:01:32]} 16. O-O {
[%emt 0:01:27]} Nc5 {[%emt 0:24:16]} 17. Nc6 {[%emt 0:06:14]} Qc7 {[%emt 0:00:
00]} 18. Bxc5 {[%emt 0:06:08]} dxc5 {[%emt 0:00:06]} 19. Nxe7+ {[%emt 0:02:50]}
Qxe7 {[%emt 0:00:03]} 20. Rxa8 {[%emt 0:00:18]} Rxa8 {[%emt 0:00:06]} 21. Qc6 {
[%emt 0:00:22]} Rd8 {[%emt 0:02:25]} 22. Rd1 {[%emt 0:06:34]} Qd6 {[%emt 0:00:
00]} 23. Bb5 {[%emt 0:00:57]} Kf8 {[%emt 0:09:17]} 24. c4 {[%emt 0:00:58]} Qxc6
{[%emt 0:02:13]} 25. Bxc6 {[%emt 0:00:04]} Ke7 {[%emt 0:00:23]} 26. Ra1 {
[%emt 0:01:17]} Rb8 {[%emt 0:12:32]} 27. Ra7+ {[%emt 0:01:34]} Kf8 {[%emt 0:00:
00]} 28. Bb5 {[%emt 0:03:31]} Nxd5 {[%emt 0:02:33]} 29. cxd5 {[%emt 0:11:23]}
Rxb5 {[%emt 0:00:03]} 30. d6 {[%emt 0:00:10]} f6 {[%emt 0:04:26]} 31. Ra8+ {
[%emt 0:01:30]} Kf7 {[%emt 0:00:03]} 32. d7 {[%emt 0:00:26]} Rxb2 {[%emt 0:00:
00]} 33. h4 {[%emt 0:01:12]} 1-0

[Event "44th Chess Olympiad Open 2022"]
[Site "Chennai"]
[Date "2022.08.01"]
[Round "4.80"]
[White "Hlophe, Smilo"]
[Black "Hussain, Hashem"]
[Result "1-0"]
[WhiteElo "1731"]
[BlackElo "1757"]
[Annotator "NA RC"]
[PlyCount "89"]
[EventDate "2022.??.??"]
[TimeControl "60"]

1. d4 {[%emt 0:00:03]} Nf6 {[%emt 0:00:19]} 2. g3 {[%emt 0:00:04]} g6 {[%emt 0:
00:00]} 3. Bg2 {[%emt 0:00:05]} Bg7 {[%emt 0:00:58]} 4. e4 {[%emt 0:00:07]} d6
{[%emt 0:00:15]} 5. Ne2 {[%emt 0:00:07]} O-O {[%emt 0:01:52]} 6. Nbc3 {[%emt 0:
00:00]} e5 {[%emt 0:02:30]} 7. h3 {[%emt 0:00:18]} Nc6 {[%emt 0:02:05]} 8. Be3
{[%emt 0:00:13]} a6 {[%emt 0:02:11]} 9. a4 {[%emt 0:00:06]} a5 {[%emt 0:04:50]}
10. Qd2 {[%emt 0:00:28]} Re8 {[%emt 0:12:00]} 11. O-O {[%emt 0:00:15]} Bd7 {
[%emt 0:02:48]} 12. d5 {[%emt 0:08:10]} Nb4 {[%emt 0:01:18]} 13. g4 {[%emt 0:
00:00]} h5 {[%emt 0:05:06]} 14. g5 {[%emt 0:00:18]} Nh7 {[%emt 0:00:35]} 15. h4
{[%emt 0:00:16]} Rf8 {[%emt 0:02:50]} 16. f4 {[%emt 0:03:28]} f5 {[%emt 0:00:
00]} 17. Ng3 {[%emt 0:07:26]} Qe7 {[%emt 0:03:17]} 18. exf5 {[%emt 0:01:01]}
Bxf5 {[%emt 0:04:17]} 19. Nxf5 {[%emt 0:00:10]} gxf5 {[%emt 0:00:19]} 20. Bf3 {
[%emt 0:12:37]} e4 {[%emt 0:06:55]} 21. Bxh5 {[%emt 0:02:13]} Rad8 {[%emt 0:00:
00]} 22. Rf2 {[%emt 0:08:15]} Na6 {[%emt 0:03:03]} 23. Bd4 {[%emt 0:00:28]} Nc5
{[%emt 0:01:54]} 24. Re1 {[%emt 0:03:00]} c6 {[%emt 0:01:22]} 25. b3 {[%emt 0:
00:00]} Rd7 {[%emt 0:02:19]} 26. Nd1 {[%emt 0:00:22]} cxd5 {[%emt 0:00:39]} 27.
Ne3 {[%emt 0:01:58]} Qe6 {[%emt 0:03:29]} 28. Bxg7 {[%emt 0:00:24]} Rxg7 {
[%emt 0:00:27]} 29. Rg2 {[%emt 0:00:50]} Kh8 {[%emt 0:03:39]} 30. Qxd5 {
[%emt 0:00:14]} Rd8 {[%emt 0:02:26]} 31. Qxe6 {[%emt 0:00:30]} Nxe6 {[%emt 0:
00:00]} 32. Nxf5 {[%emt 0:02:12]} Nxf4 {[%emt 0:00:29]} 33. Nxg7 {[%emt 0:00:
00]} Kxg7 {[%emt 0:00:10]} 34. Bg4 {[%emt 0:03:29]} Nxg2 {[%emt 0:00:34]} 35.
Kxg2 {[%emt 0:00:04]} d5 {[%emt 0:00:27]} 36. Kg3 {[%emt 0:06:53]} Nf8 {
[%emt 0:00:20]} 37. h5 {[%emt 0:01:26]} Rd6 {[%emt 0:00:51]} 38. Kf4 {[%emt 0:
00:00]} Rc6 {[%emt 0:01:03]} 39. Re2 {[%emt 0:01:18]} Nh7 {[%emt 0:01:09]} 40.
Bf5 {[%emt 0:00:27]} Nf8 {[%emt 0:02:27]} 41. Ke5 {[%emt 0:31:57]} Rc5 {
[%emt 0:30:13]} 42. h6+ {[%emt 0:00:26]} Kf7 {[%emt 0:01:30]} 43. Rh2 {[%emt 0:
00:00]} Ng6+ {[%emt 0:02:17]} 44. Bxg6+ {[%emt 0:00:13]} Kxg6 {[%emt 0:00:06]}
45. h7 {[%emt 0:00:07]} 1-0